[Event "Betsys MČR v online bleskovém šachu 2021"]
[Site "Chess.com"]
[Date "2021.04.17"]
[Round "1"]
[White "machajda"]
[Black "JosefBara"]
[Result "1-0"]
[WhiteElo "2021"]
[BlackElo "1289"]
[TimeControl "180+1"]
[EndTime "9:06:08 PDT"]
[Termination "Uživatel machajda zvítězil po vzdání soupeře"]

1. e4 {[%clk 0:03:00.9]} 1... e6 {[%clk 0:03:00.3]} 2. d4 {[%clk 0:03:00.3]}
2... d5 {[%clk 0:03:00.6]} 3. Nc3 {[%clk 0:03:00.8]} 3... Nf6 {[%clk 0:03:00.3]}
4. Bg5 {[%clk 0:03:01]} 4... Be7 {[%clk 0:03:00.4]} 5. e5 {[%clk 0:03:01.5]}
5... Nfd7 {[%clk 0:03:00.4]} 6. Bxe7 {[%clk 0:03:02]} 6... Qxe7 {[%clk
0:03:00.5]} 7. f4 {[%clk 0:03:02.5]} 7... O-O {[%clk 0:03:00.7]} 8. Nf3 {[%clk
0:03:02.9]} 8... c5 {[%clk 0:02:59.5]} 9. Qd2 {[%clk 0:03:03.1]} 9... cxd4
{[%clk 0:02:59.4]} 10. Nxd4 {[%clk 0:03:01.8]} 10... Nc6 {[%clk 0:02:57.4]} 11.
Be2 {[%clk 0:02:57.5]} 11... Nxd4 {[%clk 0:02:57.1]} 12. Qxd4 {[%clk 0:02:56.6]}
12... Qc5 {[%clk 0:02:56.1]} 13. Qxc5 {[%clk 0:02:51.7]} 13... Nxc5 {[%clk
0:02:56.2]} 14. O-O-O {[%clk 0:02:50.9]} 14... a6 {[%clk 0:02:55.6]} 15. Bf3
{[%clk 0:02:33.5]} 15... b5 {[%clk 0:02:54.3]} 16. Ne2 {[%clk 0:02:30.5]} 16...
Bb7 {[%clk 0:02:53.1]} 17. Nd4 {[%clk 0:02:28.6]} 17... Rac8 {[%clk 0:02:51.2]}
18. Kb1 {[%clk 0:02:27.3]} 18... b4 {[%clk 0:02:43.3]} 19. Rhe1 {[%clk
0:02:24.7]} 19... a5 {[%clk 0:02:42.8]} 20. f5 {[%clk 0:02:15.1]} 20... exf5
{[%clk 0:02:38.1]} 21. Nxf5 {[%clk 0:02:15]} 21... Ne4 {[%clk 0:02:33.3]} 22.
Bxe4 {[%clk 0:02:13.7]} 22... dxe4 {[%clk 0:02:32.2]} 23. Ne7+ {[%clk
0:02:13.5]} 23... Kh8 {[%clk 0:02:30.9]} 24. Nxc8 {[%clk 0:02:14.4]} 24... Rxc8
{[%clk 0:02:30.6]} 25. Rd7 {[%clk 0:02:12.8]} 25... Bc6 {[%clk 0:02:26.3]} 26.
Rxf7 {[%clk 0:02:10.2]} 26... Kg8 {[%clk 0:02:25]} 27. Ra7 {[%clk 0:02:09]}
27... e3 {[%clk 0:02:19.2]} 28. Rxe3 {[%clk 0:02:05.4]} 28... Bxg2 {[%clk
0:02:18.9]} 29. Rg3 {[%clk 0:02:03.8]} 29... Rd8 {[%clk 0:02:10.9]} 30. Rgxg7+
{[%clk 0:01:56.5]} 30... Kf8 {[%clk 0:02:08.1]} 31. Raf7+ {[%clk 0:01:54.4]}
31... Ke8 {[%clk 0:02:07.2]} 32. Rg8+ {[%clk 0:01:53.8]} 32... Kxf7 {[%clk
0:02:03.8]} 33. Rxd8 {[%clk 0:01:54.7]} 33... Be4 {[%clk 0:01:57.6]} 34. Rd4
{[%clk 0:01:49.7]} 34... Bg6 {[%clk 0:01:56.4]} 35. Rd5 {[%clk 0:01:45.7]} 35...
Ke6 {[%clk 0:01:56.4]} 36. Rxa5 {[%clk 0:01:44.9]} 36... h5 {[%clk 0:01:50.6]}
37. a3 {[%clk 0:01:43.1]} 37... bxa3 {[%clk 0:01:50]} 38. bxa3 {[%clk
0:01:40.4]} 38... Be4 {[%clk 0:01:46.4]} 39. Rb5 {[%clk 0:01:36.3]} 39... h4
{[%clk 0:01:42.7]} 40. a4 {[%clk 0:01:34.8]} 40... Bc6 {[%clk 0:01:39.4]} 41.
Rb6 {[%clk 0:01:33.9]} 41... Kd5 {[%clk 0:01:38.6]} 42. a5 {[%clk 0:01:23.8]}
42... Ba4 {[%clk 0:01:30.1]} 43. e6 {[%clk 0:01:20.7]} 43... Kc5 {[%clk
0:01:28.1]} 44. e7 {[%clk 0:01:19.2]} 44... Kc4 {[%clk 0:01:28]} 45. Rb8 {[%clk
0:01:17.2]} 45... Kc3 {[%clk 0:01:25.6]} 46. e8=Q {[%clk 0:01:15.4]} 46... Bxe8
{[%clk 0:01:20.3]} 47. Rxe8 {[%clk 0:01:16.3]} 47... Kb4 {[%clk 0:01:19.5]} 48.
a6 {[%clk 0:01:16.8]} 1-0

[Event "Betsys MČR v online bleskovém šachu 2021"]
[Site "Chess.com"]
[Date "2021.04.17"]
[Round "1"]
[White "Cimrman"]
[Black "Jacques_se_mas"]
[Result "1-0"]
[WhiteElo "2357"]
[BlackElo "1722"]
[TimeControl "180+1"]
[EndTime "9:06:10 PDT"]
[Termination "Uživatel Cimrman zvítězil po vzdání soupeře"]

1. d4 {[%clk 0:03:00.4]} 1... b6 {[%clk 0:02:59.5]} 2. Nf3 {[%clk 0:02:57.4]}
2... e6 {[%clk 0:02:57.5]} 3. c4 {[%clk 0:02:53.9]} 3... Bb7 {[%clk 0:02:57.5]}
4. Nc3 {[%clk 0:02:53.7]} 4... f5 {[%clk 0:02:56.1]} 5. e3 {[%clk 0:02:51.3]}
5... Nf6 {[%clk 0:02:56.4]} 6. Be2 {[%clk 0:02:51.4]} 6... Bb4 {[%clk
0:02:50.1]} 7. Bd2 {[%clk 0:02:45.3]} 7... O-O {[%clk 0:02:47.6]} 8. O-O {[%clk
0:02:44.9]} 8... d6 {[%clk 0:02:40.6]} 9. a3 {[%clk 0:02:43]} 9... Bxc3 {[%clk
0:02:39.2]} 10. Bxc3 {[%clk 0:02:43.9]} 10... Ne4 {[%clk 0:02:35.1]} 11. Qc2
{[%clk 0:02:41.7]} 11... Nxc3 {[%clk 0:02:29.8]} 12. Qxc3 {[%clk 0:02:40.9]}
12... Nd7 {[%clk 0:02:30.1]} 13. Nd2 {[%clk 0:02:40.5]} 13... Nf6 {[%clk
0:02:28.5]} 14. Bf3 {[%clk 0:02:33.8]} 14... Bxf3 {[%clk 0:02:24.9]} 15. Nxf3
{[%clk 0:02:34.7]} 15... Ne4 {[%clk 0:02:25.6]} 16. Qc2 {[%clk 0:02:34.1]} 16...
Qe8 {[%clk 0:02:15.8]} 17. Nd2 {[%clk 0:02:32.3]} 17... Nxd2 {[%clk 0:02:12.8]}
18. Qxd2 {[%clk 0:02:33.2]} 18... Qg6 {[%clk 0:02:08.3]} 19. f4 {[%clk
0:02:32.2]} 19... Rf6 {[%clk 0:02:04.4]} 20. b4 {[%clk 0:02:28.8]} 20... c5
{[%clk 0:02:00]} 21. bxc5 {[%clk 0:02:26]} 21... dxc5 {[%clk 0:01:58.2]} 22.
dxc5 {[%clk 0:02:25.7]} 22... bxc5 {[%clk 0:01:58.6]} 23. Qd6 {[%clk 0:02:16.2]}
23... Rc8 {[%clk 0:01:51.4]} 24. Rab1 {[%clk 0:02:11.1]} 24... Qe8 {[%clk
0:01:46.3]} 25. Rb7 {[%clk 0:02:04.2]} 25... Rf7 {[%clk 0:01:46.6]} 26. Rfb1
{[%clk 0:01:57.4]} 26... Rxb7 {[%clk 0:01:37.4]} 27. Rxb7 {[%clk 0:01:58.3]}
27... Qd8 {[%clk 0:01:33.2]} 28. Qxe6+ {[%clk 0:01:49.4]} 28... Kh8 {[%clk
0:01:33.5]} 29. Qd7 {[%clk 0:01:34.7]} 29... Qxd7 {[%clk 0:01:22.1]} 30. Rxd7
{[%clk 0:01:35.6]} 30... g6 {[%clk 0:01:22.6]} 31. Rxa7 {[%clk 0:01:34.4]} 31...
Rb8 {[%clk 0:01:22.8]} 32. Kf2 {[%clk 0:01:34]} 32... Kg8 {[%clk 0:01:12.6]} 33.
Kf3 {[%clk 0:01:33]} 33... Rb1 {[%clk 0:01:10.5]} 34. Rc7 {[%clk 0:01:31.9]}
34... Rb3 {[%clk 0:01:09.3]} 35. Rxc5 {[%clk 0:01:31.3]} 35... Rxa3 {[%clk
0:01:09.5]} 36. Rc8+ {[%clk 0:01:31.2]} 36... Kg7 {[%clk 0:01:08.1]} 37. Rc7+
{[%clk 0:01:31.5]} 37... Kh6 {[%clk 0:01:07.9]} 38. h3 {[%clk 0:01:30]} 38...
Ra2 {[%clk 0:01:07.2]} 39. g4 {[%clk 0:01:29.6]} 39... fxg4+ {[%clk 0:00:58.1]}
40. hxg4 {[%clk 0:01:30.5]} 40... Rc2 {[%clk 0:00:57.1]} 41. g5+ {[%clk
0:01:29.7]} 1-0

[Event "Betsys MČR v online bleskovém šachu 2021"]
[Site "Chess.com"]
[Date "2021.04.17"]
[Round "1"]
[White "krajic001"]
[Black "MartinHollan"]
[Result "0-1"]
[WhiteElo "1792"]
[BlackElo "2578"]
[TimeControl "180+1"]
[EndTime "9:06:11 PDT"]
[Termination "Uživatel MartinHollan zvítězil po vzdání soupeře"]

1. e4 {[%clk 0:02:58.2]} 1... c5 {[%clk 0:02:59.9]} 2. Nf3 {[%clk 0:02:56.7]}
2... Nc6 {[%clk 0:03:00.1]} 3. c3 {[%clk 0:02:51.2]} 3... Nf6 {[%clk 0:02:54.8]}
4. d3 {[%clk 0:02:46.8]} 4... g6 {[%clk 0:02:53.8]} 5. Be2 {[%clk 0:02:44]} 5...
Bg7 {[%clk 0:02:53.5]} 6. O-O {[%clk 0:02:40.1]} 6... O-O {[%clk 0:02:53.5]} 7.
Bg5 {[%clk 0:02:35.3]} 7... d6 {[%clk 0:02:52.5]} 8. Nbd2 {[%clk 0:02:32.6]}
8... b6 {[%clk 0:02:50.5]} 9. d4 {[%clk 0:02:22.6]} 9... Bb7 {[%clk 0:02:50.2]}
10. d5 {[%clk 0:02:14.1]} 10... Nb8 {[%clk 0:02:45.2]} 11. Rc1 {[%clk
0:02:04.2]} 11... Nbd7 {[%clk 0:02:42.8]} 12. c4 {[%clk 0:01:59.5]} 12... h6
{[%clk 0:02:35.3]} 13. Bh4 {[%clk 0:01:52.2]} 13... Nh5 {[%clk 0:02:35.2]} 14.
b3 {[%clk 0:01:37.1]} 14... Nf4 {[%clk 0:02:34.9]} 15. Bg3 {[%clk 0:01:26.1]}
15... e5 {[%clk 0:02:18.4]} 16. Bxf4 {[%clk 0:01:01.8]} 16... exf4 {[%clk
0:02:18.1]} 17. Re1 {[%clk 0:00:47.1]} 17... Bc8 {[%clk 0:02:17.1]} 18. Nf1
{[%clk 0:00:45.6]} 18... g5 {[%clk 0:02:16.5]} 19. g3 {[%clk 0:00:43.5]} 19...
g4 {[%clk 0:02:11.1]} 20. Nh4 {[%clk 0:00:40.1]} 20... f3 {[%clk 0:02:11]} 21.
Bd3 {[%clk 0:00:35.4]} 21... Ne5 {[%clk 0:02:10.5]} 22. Nf5 {[%clk 0:00:30.4]}
22... Re8 {[%clk 0:01:59.9]} 23. Nxg7 {[%clk 0:00:19.7]} 23... Kxg7 {[%clk
0:01:59.5]} 24. Qd2 {[%clk 0:00:16.1]} 24... Rh8 {[%clk 0:01:47.4]} 25. Ne3
{[%clk 0:00:14.8]} 25... Qg5 {[%clk 0:01:45.7]} 26. Nf5+ {[%clk 0:00:10.9]}
26... Bxf5 {[%clk 0:01:44.7]} 27. exf5 {[%clk 0:00:10.1]} 27... Qxd2 {[%clk
0:01:44.3]} 0-1

[Event "Betsys MČR v online bleskovém šachu 2021"]
[Site "Chess.com"]
[Date "2021.04.17"]
[Round "1"]
[White "AJedlicka"]
[Black "marosino"]
[Result "1-0"]
[WhiteElo "2210"]
[BlackElo "1590"]
[TimeControl "180+1"]
[EndTime "9:06:11 PDT"]
[Termination "Uživatel AJedlicka zvítězil po vzdání soupeře"]

1. d4 {[%clk 0:02:59.7]} 1... g6 {[%clk 0:02:59.1]} 2. c4 {[%clk 0:02:58.1]}
2... Bg7 {[%clk 0:02:58.8]} 3. e4 {[%clk 0:02:57.7]} 3... d6 {[%clk 0:02:58.9]}
4. Nc3 {[%clk 0:02:56.9]} 4... Nf6 {[%clk 0:02:58.5]} 5. Nf3 {[%clk 0:02:56.4]}
5... O-O {[%clk 0:02:58.3]} 6. Be2 {[%clk 0:02:55.6]} 6... b6 {[%clk 0:02:57.3]}
7. O-O {[%clk 0:02:55.1]} 7... Bb7 {[%clk 0:02:56.7]} 8. d5 {[%clk 0:02:54.9]}
8... e6 {[%clk 0:02:55]} 9. Bg5 {[%clk 0:02:52.7]} 9... exd5 {[%clk 0:02:54.3]}
10. cxd5 {[%clk 0:02:51.5]} 10... Qd7 {[%clk 0:02:52.1]} 11. Nd2 {[%clk
0:02:50.2]} 11... Re8 {[%clk 0:02:51]} 12. Bb5 {[%clk 0:02:48.5]} 12... c6
{[%clk 0:02:47.1]} 13. dxc6 {[%clk 0:02:48]} 13... Bxc6 {[%clk 0:02:47]} 14.
Bxc6 {[%clk 0:02:47.3]} 14... Nxc6 {[%clk 0:02:46]} 15. Re1 {[%clk 0:02:34.5]}
15... Ne5 {[%clk 0:02:45.1]} 16. Nf3 {[%clk 0:02:28.1]} 16... Nxf3+ {[%clk
0:02:43]} 17. Qxf3 {[%clk 0:02:27.5]} 17... Qe6 {[%clk 0:02:26.8]} 18. Rad1
{[%clk 0:02:25.4]} 18... Nd7 {[%clk 0:02:25.4]} 19. Nd5 {[%clk 0:02:21.2]} 19...
Rac8 {[%clk 0:02:17.5]} 20. b3 {[%clk 0:02:18.5]} 20... h6 {[%clk 0:02:15.2]}
21. Bd2 {[%clk 0:02:14.2]} 21... Ne5 {[%clk 0:02:06.6]} 22. Qg3 {[%clk 0:02:13]}
22... h5 {[%clk 0:01:52.3]} 23. Bb4 {[%clk 0:02:10.1]} 23... Red8 {[%clk
0:01:45.5]} 24. h3 {[%clk 0:02:03.6]} 24... Nc6 {[%clk 0:01:42.2]} 25. Ba3
{[%clk 0:02:01.1]} 25... Be5 {[%clk 0:01:40.6]} 26. f4 {[%clk 0:02:00.2]} 26...
Bg7 {[%clk 0:01:38.1]} 27. f5 {[%clk 0:01:56.9]} 27... Qe5 {[%clk 0:01:33.9]}
28. Qg5 {[%clk 0:01:52.6]} 28... Nd4 {[%clk 0:01:17.8]} 29. Bc1 {[%clk 0:01:37]}
29... Nb5 {[%clk 0:01:04.9]} 30. Bf4 {[%clk 0:01:35.7]} 30... Qb2 {[%clk
0:00:57.7]} 31. Ne7+ {[%clk 0:01:32.5]} 31... Kh7 {[%clk 0:00:49.6]} 32. fxg6+
{[%clk 0:01:31.4]} 32... fxg6 {[%clk 0:00:47.6]} 33. Qxg6+ {[%clk 0:01:31.1]}
33... Kh8 {[%clk 0:00:41.4]} 34. Qxh5+ {[%clk 0:01:30.1]} 1-0

[Event "Betsys MČR v online bleskovém šachu 2021"]
[Site "Chess.com"]
[Date "2021.04.17"]
[Round "1"]
[White "Mitram64"]
[Black "dzerenyss"]
[Result "1-0"]
[WhiteElo "1990"]
[BlackElo "1192"]
[TimeControl "180+1"]
[EndTime "9:06:14 PDT"]
[Termination "Uživatel Mitram64 zvítězil na čas"]

1. d4 {[%clk 0:02:56.3]} 1... d5 {[%clk 0:02:57.9]} 2. Nf3 {[%clk 0:02:55.3]}
2... e6 {[%clk 0:02:55]} 3. Bf4 {[%clk 0:02:53.6]} 3... Bd6 {[%clk 0:02:45]} 4.
Bg3 {[%clk 0:02:50.2]} 4... Nf6 {[%clk 0:02:39.9]} 5. e3 {[%clk 0:02:49]} 5...
Ne4 {[%clk 0:02:31.8]} 6. Nbd2 {[%clk 0:02:48]} 6... Nxg3 {[%clk 0:02:04.8]} 7.
hxg3 {[%clk 0:02:44.7]} 7... Nc6 {[%clk 0:02:00.4]} 8. c3 {[%clk 0:02:38.2]}
8... Bd7 {[%clk 0:01:52]} 9. Bd3 {[%clk 0:02:35.8]} 9... h6 {[%clk 0:01:47.7]}
10. Qe2 {[%clk 0:02:32.2]} 10... Qf6 {[%clk 0:01:43.6]} 11. O-O {[%clk 0:02:20]}
11... O-O-O {[%clk 0:01:39]} 12. b4 {[%clk 0:02:09.9]} 12... g5 {[%clk
0:01:30.3]} 13. a4 {[%clk 0:02:04.5]} 13... a6 {[%clk 0:01:23.2]} 14. b5 {[%clk
0:02:02.7]} 14... axb5 {[%clk 0:00:49.4]} 15. axb5 {[%clk 0:01:59.3]} 15... Nb8
{[%clk 0:00:44.9]} 16. Ra8 {[%clk 0:01:57.5]} 16... Rdg8 {[%clk 0:00:36.2]} 17.
Rfa1 {[%clk 0:01:52.1]} 17... c6 {[%clk 0:00:28.4]} 18. b6 {[%clk 0:01:47.9]}
18... g4 {[%clk 0:00:24.1]} 19. Nh4 {[%clk 0:01:46.7]} 19... Bxg3 {[%clk
0:00:19.6]} 20. fxg3 {[%clk 0:01:44.1]} 20... h5 {[%clk 0:00:14.5]} 21. e4
{[%clk 0:01:38.2]} 21... dxe4 {[%clk 0:00:11.7]} 22. Nxe4 {[%clk 0:01:37]} 22...
Qg7 {[%clk 0:00:03.6]} 23. Nd6+ {[%clk 0:01:29.4]} 1-0

[Event "Betsys MČR v online bleskovém šachu 2021"]
[Site "Chess.com"]
[Date "2021.04.17"]
[Round "1"]
[White "Honzik1950"]
[Black "Rubinus"]
[Result "0-1"]
[WhiteElo "1490"]
[BlackElo "2138"]
[TimeControl "180+1"]
[EndTime "9:06:17 PDT"]
[Termination "Uživatel Rubinus zvítězil po vzdání soupeře"]

1. e4 {[%clk 0:03:00.4]} 1... c5 {[%clk 0:02:59.1]} 2. Nf3 {[%clk 0:02:59.7]}
2... d6 {[%clk 0:02:58.5]} 3. d4 {[%clk 0:02:59]} 3... cxd4 {[%clk 0:02:58]} 4.
Nxd4 {[%clk 0:02:59.2]} 4... Nf6 {[%clk 0:02:58.3]} 5. Nc3 {[%clk 0:02:58.3]}
5... a6 {[%clk 0:02:58.8]} 6. f3 {[%clk 0:02:58.3]} 6... e5 {[%clk 0:02:58.6]}
7. Nb3 {[%clk 0:02:53.6]} 7... Be6 {[%clk 0:02:57.9]} 8. Be3 {[%clk 0:02:53.5]}
8... Qc7 {[%clk 0:02:57.4]} 9. Qd2 {[%clk 0:02:53.7]} 9... Nbd7 {[%clk
0:02:57.3]} 10. O-O-O {[%clk 0:02:53.7]} 10... Be7 {[%clk 0:02:57.3]} 11. Nd5
{[%clk 0:02:49.9]} 11... Nxd5 {[%clk 0:02:49.8]} 12. exd5 {[%clk 0:02:48.8]}
12... Bf5 {[%clk 0:02:49.7]} 13. Bd3 {[%clk 0:02:36.7]} 13... Bxd3 {[%clk
0:02:46.2]} 14. Qxd3 {[%clk 0:02:37.1]} 14... O-O {[%clk 0:02:45.8]} 15. Kb1
{[%clk 0:02:29.7]} 15... f5 {[%clk 0:02:43.5]} 16. g4 {[%clk 0:02:26.1]} 16...
f4 {[%clk 0:02:42.5]} 17. Bd2 {[%clk 0:02:21.2]} 17... Rac8 {[%clk 0:02:40.5]}
18. Bc3 {[%clk 0:02:09.7]} 18... Bh4 {[%clk 0:02:27.5]} 19. Ba5 {[%clk 0:01:49]}
19... Qc4 {[%clk 0:02:22.4]} 20. Qxc4 {[%clk 0:01:46.9]} 20... Rxc4 {[%clk
0:02:21.1]} 21. Nd2 {[%clk 0:01:35]} 21... Rcc8 {[%clk 0:02:15.6]} 22. Ne4
{[%clk 0:01:34.6]} 22... Be7 {[%clk 0:02:07.9]} 23. h4 {[%clk 0:01:24.8]} 23...
Nf6 {[%clk 0:02:03.7]} 24. Nxf6+ {[%clk 0:01:17.8]} 24... Rxf6 {[%clk
0:01:55.8]} 25. g5 {[%clk 0:01:15.8]} 25... Rf7 {[%clk 0:01:53.4]} 26. Rd2
{[%clk 0:01:09.9]} 26... g6 {[%clk 0:01:52.7]} 27. Bc3 {[%clk 0:01:00.9]} 27...
Rc4 {[%clk 0:01:48.1]} 28. Rd3 {[%clk 0:00:50.6]} 28... Rf5 {[%clk 0:01:45.7]}
29. b3 {[%clk 0:00:49.5]} 29... Rc8 {[%clk 0:01:43]} 30. Bb4 {[%clk 0:00:43.4]}
30... b5 {[%clk 0:01:39.6]} 31. Rd2 {[%clk 0:00:41.2]} 31... Rf7 {[%clk
0:01:31.3]} 32. Rg2 {[%clk 0:00:39.7]} 32... Rf5 {[%clk 0:01:29.2]} 33. a4
{[%clk 0:00:34.3]} 33... bxa4 {[%clk 0:01:27.9]} 34. bxa4 {[%clk 0:00:34.8]}
34... Rb8 {[%clk 0:01:27.3]} 35. c3 {[%clk 0:00:30.9]} 35... a5 {[%clk
0:01:27.4]} 0-1

[Event "Betsys MČR v online bleskovém šachu 2021"]
[Site "Chess.com"]
[Date "2021.04.17"]
[Round "1"]
[White "JakubPulpan"]
[Black "Milan_Jancek"]
[Result "1-0"]
[WhiteElo "2716"]
[BlackElo "1818"]
[TimeControl "180+1"]
[EndTime "9:06:18 PDT"]
[Termination "Uživatel JakubPulpan zvítězil po vzdání soupeře"]

1. d4 {[%clk 0:02:58.1]} 1... d5 {[%clk 0:02:59.6]} 2. c4 {[%clk 0:02:55.9]}
2... Nf6 {[%clk 0:02:59.2]} 3. cxd5 {[%clk 0:02:54.3]} 3... Nxd5 {[%clk
0:02:58.6]} 4. e4 {[%clk 0:02:50.6]} 4... Nf6 {[%clk 0:02:58.6]} 5. Nc3 {[%clk
0:02:50.8]} 5... e6 {[%clk 0:02:58.7]} 6. Nf3 {[%clk 0:02:51]} 6... Be7 {[%clk
0:02:57.7]} 7. Bd3 {[%clk 0:02:51]} 7... O-O {[%clk 0:02:57.8]} 8. O-O {[%clk
0:02:51.4]} 8... b6 {[%clk 0:02:57.7]} 9. Qe2 {[%clk 0:02:50.6]} 9... Bb7 {[%clk
0:02:57.7]} 10. Rd1 {[%clk 0:02:51.3]} 10... Nbd7 {[%clk 0:02:52.9]} 11. h3
{[%clk 0:02:47.3]} 11... h6 {[%clk 0:02:52.8]} 12. Bf4 {[%clk 0:02:44.3]} 12...
Rc8 {[%clk 0:02:49.1]} 13. Bc2 {[%clk 0:02:37.9]} 13... a6 {[%clk 0:02:36.3]}
14. a4 {[%clk 0:02:36.8]} 14... Qe8 {[%clk 0:02:32.5]} 15. Bh2 {[%clk
0:02:31.2]} 15... c5 {[%clk 0:02:31.3]} 16. d5 {[%clk 0:02:29.2]} 16... exd5
{[%clk 0:02:31]} 17. exd5 {[%clk 0:02:30.1]} 17... Bd8 {[%clk 0:02:07.6]} 18.
Qd2 {[%clk 0:02:25.8]} 18... Bc7 {[%clk 0:01:59.5]} 19. d6 {[%clk 0:02:11.8]}
19... Bb8 {[%clk 0:01:59.5]} 20. Re1 {[%clk 0:02:09.9]} 20... Qd8 {[%clk
0:01:58.9]} 21. Ne5 {[%clk 0:02:10.4]} 21... Re8 {[%clk 0:01:55.7]} 22. Rad1
{[%clk 0:02:07.4]} 22... Nxe5 {[%clk 0:01:39.2]} 23. Bxe5 {[%clk 0:02:03.4]}
23... Nd7 {[%clk 0:01:37.1]} 24. Qd3 {[%clk 0:01:59.8]} 24... g6 {[%clk
0:01:19.2]} 25. Bg3 {[%clk 0:01:25]} 25... Qf6 {[%clk 0:01:16.4]} 26. Nd5 {[%clk
0:01:20.7]} 26... Bxd5 {[%clk 0:01:16]} 27. Qxd5 {[%clk 0:01:21.6]} 27... h5
{[%clk 0:01:07.6]} 28. Re7 {[%clk 0:01:00.5]} 28... a5 {[%clk 0:00:43.9]} 29.
Rxd7 {[%clk 0:00:57.7]} 1-0

[Event "Betsys MČR v online bleskovém šachu 2021"]
[Site "Chess.com"]
[Date "2021.04.17"]
[Round "1"]
[White "Tobish"]
[Black "MBorkovec"]
[Result "0-1"]
[WhiteElo "1665"]
[BlackElo "2306"]
[TimeControl "180+1"]
[EndTime "9:06:19 PDT"]
[Termination "Uživatel MBorkovec zvítězil po vzdání soupeře"]

1. e4 {[%clk 0:02:59.7]} 1... e5 {[%clk 0:02:59.7]} 2. Nf3 {[%clk 0:02:59]} 2...
Nc6 {[%clk 0:02:59.8]} 3. d4 {[%clk 0:02:59.3]} 3... exd4 {[%clk 0:02:59.5]} 4.
Nxd4 {[%clk 0:03:00.2]} 4... Nf6 {[%clk 0:02:59.5]} 5. Nc3 {[%clk 0:02:57.7]}
5... Bb4 {[%clk 0:02:57.8]} 6. Nxc6 {[%clk 0:02:56.6]} 6... bxc6 {[%clk
0:02:57.5]} 7. Bd3 {[%clk 0:02:56.8]} 7... d5 {[%clk 0:02:57.9]} 8. O-O {[%clk
0:02:48]} 8... O-O {[%clk 0:02:51.8]} 9. Bg5 {[%clk 0:02:45]} 9... Bxc3 {[%clk
0:02:40.2]} 10. bxc3 {[%clk 0:02:43.4]} 10... dxe4 {[%clk 0:02:40.6]} 11. Bxf6
{[%clk 0:02:40.3]} 11... Qxf6 {[%clk 0:02:40.4]} 12. Bxe4 {[%clk 0:02:40]} 12...
Qxc3 {[%clk 0:02:36.3]} 13. Qh5 {[%clk 0:02:25.9]} 13... g6 {[%clk 0:02:34.7]}
14. Qh4 {[%clk 0:02:19.3]} 14... Be6 {[%clk 0:02:21]} 15. Rfd1 {[%clk
0:02:15.1]} 15... Rad8 {[%clk 0:02:13.2]} 16. Bd3 {[%clk 0:02:06.5]} 16... Rd4
{[%clk 0:02:03.2]} 17. Qg3 {[%clk 0:02:04.2]} 17... Rd7 {[%clk 0:01:40.7]} 18.
h3 {[%clk 0:02:03.4]} 18... Rfd8 {[%clk 0:01:40.6]} 19. Qe3 {[%clk 0:01:50.6]}
19... c5 {[%clk 0:01:36.9]} 20. Kh1 {[%clk 0:01:33.9]} 20... c4 {[%clk
0:01:35.5]} 21. Be2 {[%clk 0:01:31.6]} 21... Rxd1+ {[%clk 0:01:32.4]} 22. Rxd1
{[%clk 0:01:29.9]} 22... Rxd1+ {[%clk 0:01:29.8]} 23. Bxd1 {[%clk 0:01:30.5]}
23... Qxe3 {[%clk 0:01:30.3]} 24. fxe3 {[%clk 0:01:29.8]} 24... c3 {[%clk
0:01:30.9]} 25. a3 {[%clk 0:01:28.9]} 25... Kg7 {[%clk 0:01:30.4]} 26. Kh2
{[%clk 0:01:28.6]} 26... Kf6 {[%clk 0:01:31]} 27. Kg3 {[%clk 0:01:29]} 27... Ke5
{[%clk 0:01:31.5]} 28. Kf3 {[%clk 0:01:21.3]} 28... Bd5+ {[%clk 0:01:31.5]} 29.
Kf2 {[%clk 0:01:19.1]} 29... Be4 {[%clk 0:01:31.7]} 30. g3 {[%clk 0:01:17.5]}
30... f5 {[%clk 0:01:31.7]} 31. Ke2 {[%clk 0:01:08.3]} 31... Kd5 {[%clk
0:01:26.6]} 32. Kf2 {[%clk 0:01:05.1]} 32... Kc5 {[%clk 0:01:25.6]} 33. g4
{[%clk 0:01:05.4]} 33... Kb5 {[%clk 0:01:22.7]} 34. Kg3 {[%clk 0:01:04.8]} 34...
Ka4 {[%clk 0:01:21.9]} 35. Kf4 {[%clk 0:01:04.3]} 35... Kxa3 {[%clk 0:01:21.5]}
36. gxf5 {[%clk 0:01:00.3]} 36... gxf5 {[%clk 0:01:20.7]} 37. Kg5 {[%clk
0:00:59.6]} 37... Kb2 {[%clk 0:01:21.1]} 38. Kh6 {[%clk 0:00:59.7]} 38... Bxc2
{[%clk 0:01:20.8]} 39. Be2 {[%clk 0:00:57.2]} 39... Be4 {[%clk 0:01:18.9]} 40.
Bd1 {[%clk 0:00:55.2]} 40... c2 {[%clk 0:01:17.7]} 41. Bxc2 {[%clk 0:00:54.7]}
41... Kxc2 {[%clk 0:01:18.1]} 42. Kxh7 {[%clk 0:00:55.6]} 42... f4+ {[%clk
0:01:18.2]} 43. Kg7 {[%clk 0:00:54.7]} 43... fxe3 {[%clk 0:01:18.4]} 0-1

[Event "Betsys MČR v online bleskovém šachu 2021"]
[Site "Chess.com"]
[Date "2021.04.17"]
[Round "1"]
[White "DavidZidlicky"]
[Black "fortale"]
[Result "0-1"]
[WhiteElo "1705"]
[BlackElo "2332"]
[TimeControl "180+1"]
[EndTime "9:06:20 PDT"]
[Termination "Uživatel fortale zvítězil po vzdání soupeře"]

1. e4 {[%clk 0:02:59.3]} 1... c5 {[%clk 0:02:59.8]} 2. Nf3 {[%clk 0:02:58.8]}
2... d6 {[%clk 0:03:00.3]} 3. Nc3 {[%clk 0:02:57.5]} 3... Nf6 {[%clk 0:02:59.6]}
4. d4 {[%clk 0:02:57.2]} 4... cxd4 {[%clk 0:03:00.5]} 5. Nxd4 {[%clk 0:02:57.2]}
5... g6 {[%clk 0:03:00.6]} 6. Bc4 {[%clk 0:02:56]} 6... Bg7 {[%clk 0:03:00.1]}
7. O-O {[%clk 0:02:53.6]} 7... Nc6 {[%clk 0:02:59.8]} 8. Nxc6 {[%clk 0:02:49.6]}
8... bxc6 {[%clk 0:03:00.7]} 9. f4 {[%clk 0:02:48.9]} 9... O-O {[%clk
0:03:00.2]} 10. h3 {[%clk 0:02:36]} 10... Qb6+ {[%clk 0:02:45.6]} 11. Kh1 {[%clk
0:02:31.9]} 11... Nh5 {[%clk 0:02:45.1]} 12. Kh2 {[%clk 0:02:16.2]} 12... Qb4
{[%clk 0:02:41.3]} 13. Be2 {[%clk 0:01:30.9]} 13... Nf6 {[%clk 0:02:25]} 14. e5
{[%clk 0:01:26.3]} 14... Nd5 {[%clk 0:02:09.7]} 15. Nxd5 {[%clk 0:01:23.6]}
15... cxd5 {[%clk 0:02:10.6]} 16. a3 {[%clk 0:01:20.6]} 16... Qc5 {[%clk
0:02:04.2]} 17. b4 {[%clk 0:01:16.5]} 17... Qc3 {[%clk 0:02:00.9]} 18. Bd2
{[%clk 0:01:13.3]} 18... Qd4 {[%clk 0:01:57.7]} 19. c3 {[%clk 0:01:10.4]} 19...
Qb6 {[%clk 0:01:50.3]} 20. Rf3 {[%clk 0:01:08.2]} 20... dxe5 {[%clk 0:01:49.1]}
21. Be3 {[%clk 0:01:02.2]} 21... d4 {[%clk 0:01:47.1]} 22. cxd4 {[%clk
0:01:01.7]} 22... exd4 {[%clk 0:01:48]} 23. Bf2 {[%clk 0:00:59.6]} 23... Bb7
{[%clk 0:01:47.6]} 24. Rd3 {[%clk 0:00:55.5]} 24... Rad8 {[%clk 0:01:43.7]} 25.
Bf3 {[%clk 0:00:54.9]} 25... Bxf3 {[%clk 0:01:41.2]} 26. Rxf3 {[%clk 0:00:51.1]}
26... e5 {[%clk 0:01:40.4]} 27. f5 {[%clk 0:00:43.9]} 27... e4 {[%clk
0:01:39.5]} 28. Rf4 {[%clk 0:00:29.8]} 28... Be5 {[%clk 0:01:38.7]} 29. Bg3
{[%clk 0:00:16.9]} 29... Bxf4 {[%clk 0:01:36.5]} 30. Bxf4 {[%clk 0:00:16.4]}
30... Qf6 {[%clk 0:01:36.5]} 31. Bg3 {[%clk 0:00:11.9]} 31... Qxf5 {[%clk
0:01:35.7]} 0-1